bitfinex/quotes_ETHUSD_20250724
["timestamp","ask_amount","ask_price","bid_price","bid_amount"]
[1753325227367,4.7124,3655.0,3654.8,2.73612244]
[1753325227881,4.7124,3655.0,3654.9,2.73605296]
[1753325228477,0.5254,3655.0,3654.9,2.73605296]
[1753325228678,3.9235,3655.4,3654.6,0.4426]
[1753325228878,4.20702048,3655.3,3654.9,2.73605146]
[1753325229047,4.20702048,3655.3,3655.0,2.73597062]
[1753325229241,0.3981,3655.2,3654.8,2.73612783]
[1753325229454,0.5254,3655.0,3654.8,2.73612783]
[1753325229747,4.60412048,3654.9,3654.7,2.73619428]
[1753325229974,0.3981,3654.8,3654.7,2.73619361]
[1753325231283,4.185,3654.9,3654.8,2.73612783]
[1753325233298,0.5254,3655.0,3654.9,2.73605296]
[1753325233472,4.7094,3655.0,3654.9,2.73605296]
[1753325234389,9.577,3655.7,3654.8,2.73612783]
[1753325234573,0.136,3655.4,3655.3,2.7356991]
[1753325234771,7.319,3655.4,3655.3,2.7356991]
[1753325235579,3.136,3655.4,3655.3,2.7356991]
[1753325235805,7.322,3655.4,3655.3,2.7356991]
[1753325235998,3.136,3655.4,3655.3,2.7356991]
[1753325236203,7.321,3655.4,3655.3,2.7356991]
[1753325237526,7.321,3655.4,3655.3,2.73575356]
[1753325237974,7.321,3655.4,3654.7,3.19695095]
[1753325237975,3.5254,3655.6,3655.2,2.73581296]
[1753325238181,4.184,3655.5,3655.3,2.73570086]
[1753325238574,4.184,3655.5,3655.4,2.73567872]
[1753325238778,4.183,3655.5,3655.0,0.136]
[1753325238975,4.183,3655.5,3655.2,2.73582262]
[1753325239618,0.02102048,3655.4,3655.1,2.73588372]
[1753325239978,4.183,3655.3,3655.1,2.73588372]
[1753325240614,4.183,3655.3,3655.2,2.7358284]
[1753325241093,4.183,3655.3,3655.1,2.73588329]
[1753325241611,4.183,3655.3,3655.2,2.7358284]
[1753325242223,4.181,3655.3,3655.2,2.7358284]
[1753325242382,3.6614,3655.6,3655.0,0.136]
[1753325242720,4.181,3655.5,3655.3,2.73569818]
[1753325243620,3.6614,3655.6,3655.3,2.73569818]
[1753325243815,3.6614,3655.6,3655.2,2.73580132]
[1753325243981,3.6614,3655.6,3655.0,2.8719713]
[1753325243982,4.18,3655.5,3655.1,2.73590042]
[1753325244188,4.18,3655.5,3655.2,2.7358284]
[1753325244589,4.18,3655.5,3655.0,0.136]
[1753325244923,3.0,3655.5,3655.4,2.73567872]
[1753325245231,7.18,3655.5,3655.4,2.73567872]
[1753325246019,0.6614,3655.6,3655.4,2.73567872]
[1753325246229,0.6614,3655.6,3655.5,2.73560388]
[1753325246388,3.6614,3655.6,3655.5,2.73560388]
[1753325246588,7.315,3655.6,3655.5,2.73560388]
[1753325247122,3.136,3655.6,3655.5,2.73560388]
[1753325247513,7.314,3655.6,3655.5,2.73560388]
[1753325247687,3.136,3655.6,3655.5,2.73560388]
[1753325248100,7.314,3655.6,3655.5,2.73560388]
[1753325248526,7.314,3655.6,3655.4,2.73566256]
[1753325249197,7.314,3655.6,3655.0,0.136]
[1753325249198,0.5254,3655.4,3655.0,0.136]
[1753325249418,4.19902048,3655.3,3655.2,2.7358284]
[1753325249804,4.178,3655.3,3655.2,2.7358284]
[1753325250502,0.136,3655.6,3655.5,2.73560388]
[1753325250802,0.136,3655.6,3655.5,3.19640388]
[1753325251116,4.179,3655.7,3655.6,2.73552905]
[1753325252740,4.179,3655.7,3655.6,3.19632905]
[1753325252937,0.002,3655.7,3655.6,3.19632905]
[1753325253122,4.181,3655.7,3655.6,4.10865525]
[1753325254437,4.18,3655.7,3655.6,4.10865525]
[1753325254921,0.002,3655.7,3655.6,4.91305525]
[1753325257909,0.002,3655.7,3655.6,4.94041054]
[1753325258401,0.002,3655.7,3655.6,5.49041054]
[1753325258759,0.002,3655.7,3655.6,5.46305525]
[1753325264508,0.002,3655.7,3655.6,4.45225525]
[1753325264720,0.002,3655.7,3655.6,3.64785525]
[1753325265117,0.002,3655.7,3655.6,4.46935525]
[1753325265415,0.002,3655.7,3655.6,4.91995525]
[1753325270248,0.002,3655.7,3655.6,5.46995525]
[1753325274122,0.002,3655.7,3655.6,9.64295525]
[1753325281861,0.002,3655.7,3655.6,8.82145525]
[1753325282743,0.002,3655.7,3655.6,9.58465525]
[1753325283073,1e-08,3655.7,3655.6,9.58465525]
[1753325286982,1e-08,3655.7,3655.6,9.13405525]
[1753325287170,1e-08,3655.7,3655.6,3.28552905]
[1753325287369,1e-08,3655.7,3655.6,7.90412905]
[1753325304303,1e-08,3655.9,3655.7,3.28545422]
[1753325304509,1e-08,3655.9,3655.8,8.36947939]
[1753325304707,1e-08,3655.9,3655.8,8.81227939]
[1753325304914,1e-08,3655.9,3655.8,10.67275465]
[1753325306983,1e-08,3655.9,3655.8,4.73185465]
[1753325307204,1e-08,3655.9,3655.8,7.03937939]
[1753325307412,1e-08,3655.9,3655.8,7.48217939]
[1753325307789,1e-08,3655.9,3655.8,8.03217939]
[1753325307994,1e-08,3655.9,3655.8,8.86537939]
[1753325311359,0.002,3656.4,3656.3,2.73500533]
[1753325311360,1e-08,3656.4,3656.3,2.73500533]
[1753325311646,1e-08,3656.9,3656.8,7.05753137]
[1753325311839,1e-08,3656.9,3656.8,15.54602126]
[1753325311985,1e-08,3656.9,3656.8,16.12482126]
[1753325312210,1e-08,3656.9,3656.8,10.49892126]
[1753325312550,1e-08,3656.9,3656.8,15.97912126]
[1753325312698,1e-08,3656.9,3656.8,18.12399109]
[1753325312892,1e-08,3656.9,3656.8,13.95299109]
[1753325313295,1e-08,3656.9,3656.8,18.14099109]
[1753325314150,1e-08,3656.9,3656.8,13.95299109]
[1753325314501,1e-08,3656.9,3656.8,18.14899109]
[1753325315240,1e-08,3656.9,3656.8,13.95299109]
[1753325315541,1e-08,3656.9,3656.8,18.14799109]
[1753325318527,1e-08,3656.9,3656.8,13.95299109]
[1753325318922,1e-08,3656.9,3656.8,18.14499109]
[1753325321305,0.00200001,3656.9,3656.8,18.14499109]
[1753325322236,0.00200001,3656.9,3656.8,9.3247012]
[1753325322436,0.00200001,3656.9,3656.8,10.5157012]
[1753325322646,0.00200001,3656.9,3656.8,2.87063137]
[1753325322846,0.00200001,3656.9,3656.8,7.06063137]
[1753325323004,0.00200001,3656.9,3656.8,3.42063137]
[1753325323211,0.00200001,3656.9,3656.8,7.06163137]
[1753325324442,0.00200001,3656.9,3656.8,2.87063137]
[1753325324642,0.00200001,3656.9,3656.8,7.06063137]
[1753325325055,0.00200001,3656.9,3656.8,7.05963137]
[1753325331357,0.00200001,3656.9,3656.8,9.37207221]
[1753325336631,0.00200001,3656.9,3656.8,5.18307221]
[1753325336863,0.00200001,3656.9,3656.8,9.36507221]
[1753325340569,0.00200001,3656.9,3656.8,9.36407221]
[1753325340729,0.00200001,3656.9,3656.8,5.18307221]
[1753325340933,0.00200001,3656.9,3656.8,9.36307221]
[1753325341578,1e-08,3656.9,3656.8,13.18647221]
[1753325345379,1e-08,3656.9,3656.8,9.00647221]
[1753325345585,1e-08,3656.9,3656.8,13.18447221]
[1753325345933,1e-08,3656.9,3656.8,9.00647221]
[1753325346140,1e-08,3656.9,3656.8,13.18447221]
[1753325346646,1e-08,3656.9,3656.8,17.5059621]
[1753325346848,1e-08,3656.9,3656.8,13.3279621]
[1753325347080,1e-08,3656.9,3656.8,17.5059621]
[1753325349601,1e-08,3656.9,3656.8,13.3279621]
[1753325349803,1e-08,3656.9,3656.8,13.18347221]
[1753325349969,1e-08,3656.9,3656.8,12.17027221]
[1753325350168,1e-08,3656.9,3656.8,4.71987221]
[1753325350354,1e-08,3656.9,3656.8,7.59763137]
[1753325351003,1e-08,3656.9,3656.8,7.04763137]
[1753325351197,1e-08,3656.9,3656.8,2.87063137]
[1753325351198,0.52540001,3656.9,3656.8,2.87063137]
[1753325351365,0.92350001,3656.9,3656.8,7.04763137]
[1753325351988,0.92350001,3656.9,3656.8,2.87063137]
[1753325352223,0.92350001,3656.9,3656.8,7.04863137]
[1753325352563,0.92350001,3656.9,3656.8,2.87063137]
[1753325352767,0.92350001,3656.9,3656.8,7.04763137]
[1753325352996,0.92350001,3656.9,3656.8,0.136]
[1753325353814,0.5254,3656.7,3656.5,0.136]
[1753325354099,0.5254,3656.5,3656.2,0.136]
[1753325354663,0.3981,3656.4,3656.2,0.136]
[1753325355276,0.5254,3656.5,3656.2,0.136]
[1753325355596,0.5254,3656.5,3656.4,2.73493053]
[1753325355797,0.5254,3656.5,3656.4,2.87093053]
[1753325356899,0.39810001,3656.9,3656.8,2.73463137]
[1753325357266,1e-08,3656.9,3656.8,2.87063137]
[1753325357478,0.52540001,3656.9,3656.8,2.87063137]
[1753325358171,0.92350001,3656.9,3656.8,2.87063137]
[1753325358370,0.52540001,3656.9,3656.8,2.87063137]
[1753325359005,0.92350001,3656.9,3656.8,2.87063137]
[1753325360100,0.92350001,3656.9,3656.8,0.136]
[1753325360811,0.92350001,3656.9,3656.8,2.87063137]
[1753325361511,0.52540001,3656.9,3656.8,2.87063137]
[1753325362801,0.92350001,3656.9,3656.8,2.87063137]
[1753325364717,0.92350001,3656.9,3656.8,2.87163137]
[1753325365419,0.92350001,3656.9,3656.8,0.137]
[1753325365783,0.92350001,3656.9,3656.8,2.87163137]
[1753325365980,0.92350001,3656.9,3656.8,0.137]
[1753325367419,0.52540001,3656.9,3656.8,2.87163137]
[1753325367922,0.52540001,3656.9,3656.8,0.137]
[1753325368224,0.92350001,3656.9,3656.8,0.001]
[1753325370008,6.6580566,3656.9,3656.8,0.001]
[1753325370210,6.7940566,3656.9,3656.8,0.001]
[1753325371422,10.9690566,3656.9,3656.8,0.001]
[1753325371590,10.5709566,3656.9,3656.8,0.001]
[1753325371918,8.23450001,3656.9,3656.8,0.001]
[1753325372335,40.9690566,3656.9,3656.8,0.001]
[1753325376386,55.4690566,3656.9,3656.8,0.001]
[1753325377222,36.26055494,3656.1,3656.0,0.001]
[1753325377527,40.43755494,3656.1,3656.0,0.001]
[1753325377821,40.83565494,3656.1,3656.0,0.001]
[1753325378303,10.83565494,3656.1,3656.0,0.001]
[1753325378503,40.83565494,3656.1,3656.0,0.001]
[1753325379123,41.55849699,3656.1,3656.0,0.001]
[1753325379314,33.26085422,3655.7,3655.6,0.001]
[1753325379625,44.76134411,3655.7,3655.6,0.001]
[1753325379786,45.15944411,3655.7,3655.6,0.001]
[1753325382094,2.73567872,3655.4,3655.3,0.001]
[1753325382292,44.78158909,3655.4,3655.3,0.001]
[1753325382520,45.15866861,3655.4,3655.3,0.001]
[1753325385833,45.15866861,3655.4,3655.3,1e-08]
[1753325386027,45.15866861,3655.4,3655.1,1e-08]
[1753325386028,36.2612284,3655.2,3655.1,1e-08]
[1753325386228,40.4392284,3655.2,3655.1,1e-08]
[1753325386398,40.8373284,3655.2,3655.1,1e-08]
[1753325387452,10.8373284,3655.2,3655.1,1e-08]
[1753325387735,40.8373284,3655.2,3655.1,1e-08]
[1753325389910,55.3373284,3655.2,3655.1,1e-08]
[1753325391313,32.73597811,3655.0,3654.9,1e-08]
[1753325391517,44.760868,3655.0,3654.9,1e-08]
[1753325391715,2.73657708,3654.2,3654.1,0.041]
[1753325391908,9.93559756,3654.2,3654.1,0.041]
[1753325392108,9.91457708,3654.2,3654.1,0.041]
[1753325395239,39.91457708,3654.2,3654.1,0.041]
[1753325395549,9.91457708,3654.2,3654.1,0.041]
[1753325396750,10.31267708,3654.2,3654.1,0.041]
[1753325396941,40.83807708,3654.2,3654.1,0.041]
[1753325399938,10.83807708,3654.2,3654.1,0.041]
[1753325400144,40.83807708,3654.2,3654.1,0.041]
[1753325400361,41.04029716,3654.2,3654.1,0.041]
[1753325400844,40.11579716,3654.2,3654.1,0.041]
[1753325401719,41.03929716,3654.2,3654.1,0.041]
[1753325404361,41.62601112,3654.2,3654.1,0.041]
[1753325404933,40.11579716,3654.2,3654.1,0.041]
[1753325405128,35.93879716,3654.2,3654.1,0.513]
[1753325405330,40.11579716,3654.2,3654.1,0.513]
[1753325406146,7.38022008,3654.2,3654.1,0.513]
[1753325407355,3.20222008,3654.2,3654.1,0.513]
[1753325407533,7.38022008,3654.2,3654.1,3.24965197]
[1753325408339,0.20222008,3654.2,3654.1,3.24965197]
[1753325408533,0.1368,3654.6,3654.2,2.73657569]
[1753325408737,3.0,3654.4,3654.3,0.472]
[1753325409168,4.178,3654.4,3654.3,0.472]
[1753325409554,4.38580087,3654.4,3654.3,0.472]
[1753325410138,7.38580087,3654.4,3654.3,0.472]
[1753325411256,7.38580087,3654.4,3654.3,0.4701]
[1753325412446,10.12222819,3654.4,3654.3,0.4701]
[1753325412972,7.38580087,3654.4,3654.3,0.4701]
[1753325414572,3.20880087,3654.4,3654.3,0.4701]
[1753325414884,7.38380087,3654.4,3654.3,0.4701]
[1753325415806,7.38280087,3654.4,3654.3,0.4701]
[1753325416286,3.26118826,3655.3,3654.4,2.7364131]
[1753325416287,3.0,3655.3,3654.4,2.7364131]
[1753325416471,3.1368,3655.0,3654.5,0.8268]
[1753325416672,3.0,3654.8,3654.5,3.56315185]
[1753325416872,7.174,3654.7,3654.6,0.4701]
[1753325418192,4.174,3654.7,3654.6,3.20635919]
[1753325419081,4.174,3654.7,3654.6,0.4701]
[1753325419675,4.38410428,3654.7,3654.6,0.4701]
[1753325419842,2.73627756,3654.6,3654.5,0.8268]
[1753325420044,2.73627756,3654.6,3654.2,0.4701]
[1753325420045,0.02102048,3654.6,3654.2,0.4701]
[1753325420244,4.174,3654.5,3654.3,0.4701]
[1753325420479,4.174,3654.5,3654.4,0.4701]
[1753325420641,6.91035244,3654.5,3654.4,0.4701]
[1753325421379,4.174,3654.5,3654.4,0.4701]
[1753325422383,6.91035244,3654.5,3654.4,0.4701]
[1753325422694,6.26187692,3654.4,3654.0,0.001]
[1753325422851,4.19502048,3654.3,3654.0,0.001]
[1753325423050,0.02102048,3654.3,3654.0,0.001]
[1753325423280,6.91057708,3654.2,3654.0,0.001]
[1753325423593,40.30867708,3654.2,3654.0,0.001]
[1753325423802,39.91057708,3654.2,3654.0,0.001]
[1753325424246,40.30867708,3654.2,3654.0,0.001]
[1753325425454,39.91057708,3654.2,3654.0,0.001]
[1753325427302,40.30867708,3654.2,3654.0,0.001]
[1753325427682,40.83407708,3654.2,3654.0,0.001]
[1753325427988,45.15556697,3654.2,3654.0,0.001]
[1753325428687,36.26205197,3654.1,3654.0,1e-08]
[1753325428890,36.66015197,3654.1,3654.0,1e-08]
[1753325429189,40.83415197,3654.1,3654.0,1e-08]
[1753325429974,41.42373644,3654.1,3654.0,1e-08]
[1753325430519,36.85163644,3654.1,3654.0,1e-08]
[1753325430805,40.43605197,3654.1,3654.0,1e-08]
[1753325430957,40.83415197,3654.1,3654.0,1e-08]
[1753325431686,10.83415197,3654.1,3654.0,1e-08]
[1753325431905,40.83415197,3654.1,3654.0,1e-08]
[1753325432111,41.42354791,3654.1,3654.0,1e-08]
[1753325432476,37.24954791,3654.1,3654.0,1e-08]
[1753325432810,41.42954791,3654.1,3654.0,1e-08]
[1753325433277,55.92954791,3654.1,3654.0,1e-08]
[1753325436804,51.74954791,3654.1,3654.0,1e-08]
[1753325437013,55.92954791,3654.1,3654.0,1e-08]
[1753325437474,55.34015197,3654.1,3654.0,1e-08]
[1753325438718,51.16015197,3654.1,3654.0,1e-08]
[1753325438878,55.34015197,3654.1,3654.0,1e-08]
[1753325439072,54.94105197,3654.1,3654.0,1e-08]
[1753325439676,50.76205197,3654.1,3654.0,1e-08]
[1753325439984,54.94205197,3654.1,3654.0,1e-08]
[1753325440607,55.34015197,3654.1,3654.0,1e-08]
[1753325442088,55.9289307,3654.1,3654.0,1e-08]
[1753325442411,55.34015197,3654.1,3654.0,1e-08]
[1753325442614,54.94205197,3654.1,3654.0,1e-08]
[1753325442816,50.76205197,3654.1,3654.0,1e-08]
[1753325442987,54.94105197,3654.1,3654.0,1e-08]
[1753325444279,50.76205197,3654.1,3654.0,1e-08]
[1753325444619,54.94005197,3654.1,3654.0,1e-08]
[1753325445373,51.2721455,3654.1,3654.0,1e-08]
[1753325445576,54.94005197,3654.1,3654.0,1e-08]
[1753325446007,40.44005197,3654.1,3654.0,1e-08]
[1753325446690,40.83815197,3654.1,3654.0,1e-08]
[1753325447210,36.26205197,3654.1,3654.0,1e-08]
[1753325447417,39.91365197,3654.1,3654.0,1e-08]
[1753325447727,30.0,3654.5,3654.1,0.8257]
[1753325447935,4.3148,3654.4,3654.2,0.4581]
[1753325448226,0.21010428,3654.7,3654.2,0.4581]
[1753325448227,7.178,3654.3,3654.2,0.4581]
[1753325448377,0.1368,3654.6,3654.2,0.4581]
[1753325448577,4.178,3654.5,3654.4,0.7784]
[1753325448798,4.178,3654.5,3654.4,1.2365]
[1753325449001,7.178,3654.5,3654.4,1.2365]
[1753325449188,4.178,3654.5,3654.4,1.2365]
[1753325449891,4.177,3654.5,3654.4,1.2365]
[1753325450146,4.177,3654.5,3654.4,2.33960571]
[1753325450486,0.1368,3654.6,3654.4,1.56120571]
[1753325450681,0.002,3654.8,3654.6,0.8151]
[1753325450891,0.002,3654.8,3654.5,4.77958989]
[1753325450892,0.002,3654.8,3654.7,3.55130269]
[1753325451106,4.18,3654.8,3654.7,3.68810269]
[1753325451382,4.18,3654.8,3654.7,4.14620269]
[1753325453613,4.178,3654.8,3654.7,4.14620269]
[1753325454115,0.002,3654.8,3654.7,4.14620269]
[1753325454283,4.178,3654.8,3654.7,4.14620269]
[1753325455217,4.178,3654.8,3654.7,1.41]
[1753325455595,4.178,3654.8,3654.7,4.14620269]
[1753325455910,4.176,3654.8,3654.7,4.71000509]
[1753325456506,4.176,3654.8,3654.7,4.25190509]
[1753325456811,4.176,3654.8,3654.7,0.5949]
[1753325457011,4.3128,3654.8,3654.4,0.4581]
[1753325457211,4.3128,3654.8,3654.3,0.8201]
[1753325457412,7.04893497,3654.8,3654.5,0.4581]
[1753325457612,7.04893497,3654.8,3654.3,0.8201]
[1753325457910,2.73635244,3654.5,3654.4,0.4581]
[1753325458118,6.93337292,3654.5,3654.4,0.4581]
[1753325458313,6.91235244,3654.5,3654.4,0.4581]
[1753325461012,2.7364632,3654.4,3654.1,0.5949]
[1753325461184,6.93254612,3654.3,3654.2,0.4581]
[1753325461401,2.73665197,3654.1,3653.9,1.2496]
[1753325461661,6.91165197,3654.1,3653.9,0.7915]
[1753325461813,6.91165197,3654.1,3653.8,0.4581]
[1753325462001,6.91165197,3654.1,3654.0,0.45810001]
[1753325462640,2.73652564,3654.3,3654.0,0.45810001]
[1753325462641,2.73650873,3654.3,3654.0,0.45810001]
[1753325462828,4.175,3654.1,3654.0,0.45810001]
[1753325465732,4.175,3654.1,3653.4,0.001]
[1753325465733,3.26227667,3653.8,3653.4,0.001]
[1753325466042,36.26272617,3653.2,3653.1,0.04]
[1753325466240,40.83624922,3653.2,3653.1,0.04]
[1753325466644,41.23434922,3653.2,3653.1,0.04]
[1753325466811,40.84382617,3653.2,3653.1,0.04]
[1753325467641,40.84382617,3653.2,3653.1,1e-08]
[1753325469442,35.73807568,3652.2,3652.1,1e-08]
[1753325469749,39.92407568,3652.2,3652.1,1e-08]
[1753325469923,40.32217568,3652.2,3652.1,1e-08]
[1753325470121,2.73822562,3652.0,3651.3,0.001]
[1753325470318,37.0820461,3652.0,3651.3,0.001]
[1753325470635,2.73852557,3651.6,3651.3,0.001]
[1753325470815,39.94654605,3651.6,3651.3,0.001]
[1753325471013,40.4356191,3651.6,3651.3,0.001]
[1753325471209,39.92552557,3651.6,3651.3,0.001]
[1753325471454,40.45092557,3651.6,3651.3,0.001]
[1753325471741,40.84902557,3651.6,3651.3,0.001]
[1753325472126,40.84902557,3651.6,3651.1,1e-08]
[1753325472127,5.73867557,3651.4,3651.1,1e-08]
[1753325472325,35.73957591,3650.2,3649.2,0.8188]
[1753325472653,35.73957591,3650.2,3649.1,0.4907]
[1753325472654,2.74032664,3649.2,3649.1,0.04]
[1753325472857,6.96334712,3649.2,3649.1,0.04]
[1753325473058,39.94232664,3649.2,3649.1,0.04]
[1753325473570,40.34042664,3649.2,3649.1,0.04]
[1753325474059,40.54602244,3649.2,3649.1,0.04]
[1753325476615,40.14792244,3649.2,3649.1,0.04]
[1753325478437,10.14792244,3649.2,3649.1,0.04]
[1753325478636,40.14792244,3649.2,3649.1,0.04]
[1753325481034,40.54602244,3649.2,3649.1,1e-08]
[1753325482246,40.14792244,3649.2,3649.1,1e-08]
[1753325483454,10.14792244,3649.2,3649.1,1e-08]
[1753325483640,40.14792244,3649.2,3649.1,1e-08]
[1753325483840,40.14992244,3649.2,3649.1,1e-08]
[1753325484048,10.14992244,3649.2,3649.1,0.45070001]
[1753325487175,7.14892244,3649.2,3649.1,0.45070001]
[1753325487386,10.14892244,3649.2,3649.1,0.45070001]
[1753325488554,10.08012664,3649.2,3649.1,0.45070001]
[1753325491252,7.3398,3649.2,3649.1,0.45070001]
[1753325491968,4.3398,3649.2,3649.1,0.45070001]
[1753325492169,4.203,3649.2,3649.1,0.45070001]
[1753325495091,0.1368,3649.7,3649.2,0.7514]
[1753325495261,4.198,3649.6,3649.2,0.7514]
[1753325495462,3.0,3649.5,3649.3,0.4507]
[1753325495663,7.198,3649.4,3649.3,0.4507]
[1753325497006,4.198,3649.4,3649.3,0.4507]
[1753325497203,2.73931467,3650.6,3649.3,0.4507]
[1753325497377,2.7398609,3649.9,3649.3,0.5875]
[1753325497578,9.93688366,3649.8,3649.4,0.4507]
[1753325497910,0.02102048,3649.7,3649.4,0.4507]
[1753325498090,4.197,3649.6,3649.4,0.4507]
[1753325499077,4.197,3649.6,3649.4,3.1908196]
[1753325499407,0.1368,3650.0,3649.6,0.7957]
[1753325499610,4.21702048,3649.9,3649.6,0.7957]
[1753325499810,6.95683226,3649.9,3649.6,0.7957]
[1753325500004,6.93581178,3649.9,3649.7,0.4287]
[1753325500206,0.02102048,3649.8,3649.6,0.7957]
[1753325500412,4.196,3649.7,3649.6,0.7957]
[1753325500785,4.196,3649.7,3649.6,1.2244]
[1753325500992,4.21702048,3649.7,3649.6,1.2244]
[1753325501794,4.196,3649.7,3649.6,1.2244]
[1753325504811,4.21702048,3649.7,3649.6,1.2244]
[1753325505316,4.196,3649.7,3649.6,1.2244]
[1753325506433,3.20610588,3649.9,3649.6,1.2244]
[1753325506639,4.193,3649.8,3649.7,0.4287]
[1753325506840,4.193,3649.8,3649.6,0.7957]
[1753325507535,0.02102048,3649.7,3649.6,1.2244]
[1753325507744,0.02102048,3649.7,3649.6,0.4287]
[1753325507910,2.7609717,3649.7,3649.6,0.4287]
[1753325508243,2.7609717,3649.7,3649.3,1.2246]
[1753325508244,2.74009165,3649.6,3649.3,1.2246]
[1753325508410,4.21202048,3649.5,3649.3,1.2246]
[1753325509234,6.95213698,3649.5,3649.3,1.2246]
[1753325509410,4.191,3649.5,3649.3,1.2246]
[1753325509612,4.21202048,3649.5,3649.3,1.2246]
[1753325510146,4.191,3649.5,3649.3,1.2246]
[1753325510441,4.191,3649.5,3649.4,0.4287]
[1753325513863,4.191,3649.5,3649.3,0.7959]
[1753325514064,0.02102048,3649.4,3649.1,1e-08]
[1753325514359,4.189,3649.3,3649.1,1e-08]
[1753325514560,0.02102048,3649.2,3649.1,1e-08]
[1753325515049,4.189,3649.3,3649.1,0.42870001]
[1753325515627,0.1368,3649.5,3649.2,0.4287]
[1753325515975,4.188,3649.4,3649.3,0.4287]
[1753325517432,2.87875351,3649.7,3649.3,0.4287]
[1753325517633,2.87875351,3649.7,3649.1,2.87817092]
[1753325517634,4.188,3649.6,3649.4,0.4287]
[1753325518031,30.02102048,3649.5,3649.1,0.00100001]
[1753325518232,2.87706957,3649.3,3649.1,0.00100001]
[1753325518572,4.20902048,3649.2,3649.1,0.00100001]
[1753325518731,6.94934712,3649.2,3649.1,0.00100001]
[1753325518940,10.85182664,3649.2,3649.1,0.00100001]
[1753325519140,41.4418661,3649.2,3649.1,0.00100001]
[1753325520467,10.5193661,3649.2,3649.1,0.00100001]
[1753325520767,9.92932664,3649.2,3649.1,0.00100001]
[1753325521149,40.51917317,3649.2,3649.1,0.00100001]
[1753325521973,39.92932664,3649.2,3649.1,0.00100001]
[1753325522974,5.74032664,3649.2,3649.1,0.00100001]
[1753325523180,9.93032664,3649.2,3649.1,0.00100001]
[1753325524467,3.0,3649.2,3649.1,0.00100001]
[1753325524675,7.19,3649.2,3649.1,0.42970001]
[1753325525173,3.0,3649.2,3649.1,0.42970001]
[1753325525475,7.19,3649.2,3649.1,0.42970001]
[1753325527347,7.19,3649.2,3649.1,0.00100001]
[1753325527962,7.19,3649.2,3649.1,0.42970001]
[1753325529592,39.93032664,3649.2,3649.1,0.00100001]
[1753325529880,40.85382664,3649.2,3649.1,0.00100001]
[1753325530099,41.24434969,3649.2,3649.1,0.00100001]
[1753325530886,40.85382664,3649.2,3649.1,0.00100001]
[1753325531760,40.45572664,3649.2,3649.1,0.00100001]
[1753325536083,40.85382664,3649.2,3649.1,0.00100001]
[1753325536378,41.64945184,3649.2,3649.1,0.00100001]
[1753325537367,40.87466636,3649.2,3649.1,0.00100001]
[1753325537565,40.45572664,3649.2,3649.1,0.00100001]
[1753325538373,40.45772664,3649.2,3649.1,0.00100001]
[1753325538760,9.93232664,3649.2,3649.1,0.00100001]
[1753325538960,4.192,3649.2,3649.1,0.46550001]
[1753325539171,7.192,3649.2,3649.1,0.46550001]
[1753325542458,0.002,3649.2,3649.1,3.20590175]
[1753325542691,4.188,3649.2,3649.1,4.01690175]
[1753325542889,0.002,3649.2,3649.1,1.27650001]
[1753325543088,4.188,3649.2,3649.1,4.01690175]
[1753325543784,0.002,3649.2,3649.1,4.01690175]
[1753325543984,4.188,3649.2,3649.1,4.01690175]
[1753325545494,4.188,3649.2,3649.1,5.25632633]
[1753325545495,4.187,3649.2,3649.1,5.25632633]
[1753325545663,4.187,3649.2,3649.1,5.39312633]
[1753325546685,4.187,3649.2,3649.1,1.27650001]
[1753325546887,4.187,3649.2,3649.1,4.01690175]
[1753325549104,4.187,3649.2,3649.1,4.56690175]
[1753325549272,4.187,3649.2,3649.1,4.70370175]
[1753325549693,0.002,3649.2,3649.1,4.70370175]
[1753325549897,4.186,3649.2,3649.1,5.44812089]
[1753325553277,4.186,3649.2,3649.1,9.77679463]
[1753325554793,6.92632664,3649.2,3649.1,0.00100001]
[1753325554994,10.87066636,3649.2,3649.1,0.00100001]
[1753325555183,10.45172664,3649.2,3649.1,0.00100001]
[1753325556213,10.84982664,3649.2,3649.1,0.00100001]
[1753325558115,41.26876636,3649.2,3649.1,0.00100001]
[1753325559695,11.26876636,3649.2,3649.1,0.00100001]
[1753325559892,41.26876636,3649.2,3649.1,0.00100001]
[1753325560399,40.84982664,3649.2,3649.1,0.00100001]
[1753325560799,40.45172664,3649.2,3649.1,0.00100001]
[1753325561014,2.74092752,3648.4,3648.3,0.001]
[1753325561319,7.45232752,3648.4,3648.3,0.001]
[1753325561612,10.85042752,3648.4,3648.3,0.001]
[1753325561804,10.45232752,3648.4,3648.3,0.001]
[1753325562983,9.92692752,3648.4,3648.3,0.001]
[1753325567002,5.74092752,3648.4,3648.3,0.001]
[1753325567327,9.92792752,3648.4,3648.3,0.001]
[1753325568419,10.32602752,3648.4,3648.3,0.001]
[1753325569129,9.92792752,3648.4,3648.3,0.001]
[1753325580448,9.92492752,3648.4,3648.3,0.4716]
[1753325580667,7.184,3648.4,3648.3,0.4716]
[1753325581208,3.0,3648.4,3648.3,0.4716]
[1753325581566,7.184,3648.4,3648.3,0.4716]
[1753325581890,4.184,3648.4,3648.3,0.4716]
[1753325582993,3.1368,3648.7,3648.3,0.4716]
[1753325582994,0.1368,3648.7,3648.3,0.4716]
[1753325583194,4.184,3648.6,3648.3,0.4716]
[1753325583695,4.184,3648.6,3648.4,0.7697]
[1753325583996,4.184,3648.6,3648.5,4.80306659]
[1753325584357,4.184,3648.6,3648.5,0.4706]
[1753325584564,4.184,3648.6,3648.5,3.21141914]
[1753325584758,4.184,3648.6,3648.5,4.33065698]
[1753325585682,0.1368,3649.1,3648.8,2.74058036]
[1753325585893,4.184,3649.0,3648.9,4.80306659]
[1753325586066,4.184,3649.0,3648.9,7.54361853]
[1753325586272,4.184,3649.0,3648.9,4.80306659]
[1753325587808,4.184,3649.0,3648.6,0.8138]
[1753325588004,4.184,3649.0,3648.7,0.4706]